bitfinex/quotes_ETHUSD_20250524
["timestamp","ask_amount","ask_price","bid_price","bid_amount"]
[1748049402151,4.33649337,2519.7,2519.6,45.3]
[1748049402974,3.96872643,2519.7,2519.6,45.3]
[1748049403903,5.55325599,2519.7,2519.6,32.909]
[1748049404200,5.55325599,2519.7,2519.6,44.8]
[1748049405064,5.12785339,2519.7,2519.6,44.8]
[1748049405790,4.33705339,2519.7,2519.6,44.8]
[1748049406118,4.33705339,2519.7,2519.6,45.6059]
[1748049406526,3.96872643,2519.7,2519.6,28.4889]
[1748049406814,3.96872643,2519.7,2519.6,31.33779]
[1748049411623,3.96872643,2519.7,2519.6,19.44679]
[1748049411827,3.96872643,2519.7,2519.6,31.33679]
[1748049413818,3.96872643,2519.7,2519.6,30.53089]
[1748049414440,3.96872643,2519.7,2519.6,2.84889]
[1748049414591,3.96872643,2519.7,2519.6,27.681]
[1748049415122,3.96872643,2519.7,2519.6,15.791]
[1748049415419,3.96872643,2519.7,2519.6,44.803]
[1748049421950,4.33708359,2519.7,2519.6,44.803]
[1748049423012,0.8202,2520.1,2519.6,44.803]
[1748049423212,3.96872643,2519.7,2519.6,45.5993]
[1748049423551,3.96783392,2520.3,2519.8,0.7963]
[1748049423766,0.05,2520.9,2520.0,0.7963]
[1748049424048,0.05,2520.9,2520.4,0.7963]
[1748049424255,0.05,2520.9,2520.6,0.7963]
[1748049424406,0.05,2520.9,2520.7,44.84466185]
[1748049424718,0.05,2520.9,2520.8,36.4783]
[1748049424911,0.05,2520.9,2520.8,39.39702998]
[1748049425323,0.05,2520.9,2520.8,56.52002998]
[1748049426955,4.01683724,2520.9,2520.8,56.52002998]
[1748049427452,4.01683724,2520.9,2520.8,39.39702998]
[1748049428369,0.05,2520.9,2520.8,23.60402998]
[1748049433075,3.96636671,2521.2,2520.8,23.60402998]
[1748049433381,0.8202,2521.7,2520.9,1.40596727]
[1748049433582,3.96610348,2521.4,2521.1,0.7808]
[1748049433873,3.96623471,2521.3,2521.1,0.7808]
[1748049434080,3.96636522,2521.2,2521.1,0.7808]
[1748049434581,3.96588505,2521.6,2521.1,0.7808]
[1748049434745,3.96590873,2521.5,2521.2,1.48008]
[1748049435149,3.96605363,2521.4,2521.3,40.875]
[1748049436514,3.9659309,2521.5,2521.4,8.0]
[1748049436682,3.9659309,2521.5,2521.4,19.884]
[1748049436981,3.9659309,2521.5,2521.4,21.32264998]
[1748049437488,3.9660506,2521.4,2521.3,25.114]
[1748049437676,3.9660506,2521.4,2521.3,44.756]
[1748049439496,3.9660506,2521.4,2521.3,17.114]
[1748049439669,4.7720506,2521.4,2521.3,44.756]
[1748049440373,4.7720506,2521.4,2521.3,45.256]
[1748049441199,4.7720506,2521.4,2521.3,44.756]
[1748049443199,3.9660506,2521.4,2521.3,44.756]
[1748049445469,3.9660506,2521.4,2521.3,52.756]
[1748049446111,3.9660506,2521.4,2521.3,53.256]
[1748049446405,3.9660506,2521.4,2521.3,53.45083687]
[1748049449593,3.96568841,2521.7,2521.4,0.8188]
[1748049449782,0.05,2521.9,2521.5,0.03965144]
[1748049450172,3.96587653,2521.6,2521.5,0.03965144]
[1748049451407,3.96589331,2521.5,2521.4,0.8188]
[1748049452806,3.96589331,2521.5,2521.4,0.85845304]
[1748049452970,0.05,2521.9,2521.4,0.85845304]
[1748049453177,4.01526436,2521.9,2521.5,1.34362899]
[1748049453698,3.96542152,2521.8,2521.6,0.8188]
[1748049453874,3.96545349,2521.8,2521.6,0.8188]
[1748049454075,3.96557877,2521.7,2521.6,0.8188]
[1748049455214,3.96557877,2521.7,2521.6,41.6838]
[1748049455439,3.96557877,2521.7,2521.6,44.66486826]
[1748049455938,3.96557877,2521.7,2521.6,55.72606826]
[1748049458894,3.96547373,2521.8,2521.6,55.72606826]
[1748049459840,0.05,2521.9,2521.7,0.7899]
[1748049460032,0.05,2521.9,2521.8,1.34362899]
[1748049460341,4.01526428,2521.9,2521.8,1.34362899]
[1748049462136,0.05,2521.9,2521.8,1.34362899]
[1748049465302,0.05,2521.9,2521.8,42.17862899]
[1748049466613,0.05,2521.9,2521.8,52.6859662]
[1748049466816,0.05,2521.9,2521.8,35.5799662]
[1748049467033,0.05,2521.9,2521.8,19.8509662]
[1748049469063,0.05,2521.9,2521.8,20.22882409]
[1748049469201,0.05,2521.9,2521.8,20.72882409]
[1748049470962,0.05,2521.9,2521.8,23.14473479]
[1748049473525,0.05,2521.9,2521.8,33.17473479]
[1748049474241,0.01039244,2521.9,2521.8,33.17473479]
[1748049474442,1e-08,2521.9,2521.8,33.17473479]
[1748049475226,1e-08,2521.9,2521.8,66.00273479]
[1748049478772,3.96395624,2522.8,2522.3,0.7957]
[1748049479069,3.96395624,2522.8,2522.7,1.20795535]
[1748049479278,3.96384969,2522.8,2522.7,1.20795535]
[1748049479645,3.96384969,2522.8,2522.7,1.10795535]
[1748049484286,3.96384969,2522.8,2522.7,23.724]
[1748049484596,4.01374085,2522.9,2522.7,35.599]
[1748049484743,4.01374085,2522.9,2522.8,1.20795535]
[1748049485282,4.01374085,2522.9,2522.8,18.30795535]
[1748049485867,4.01374085,2522.9,2522.8,26.30795535]
[1748049486621,0.05,2522.9,2522.8,26.30795535]
[1748049487408,3.96424484,2522.6,2521.5,0.62891249]
[1748049487593,4.72102152,2521.8,2521.7,0.47168436]
[1748049487757,4.72102152,2521.8,2521.7,16.19568436]
[1748049487954,4.72102152,2521.8,2521.7,15.724]
[1748049488193,0.7556,2521.8,2521.7,27.599]
[1748049488404,4.72102677,2521.8,2521.7,30.47969554]
[1748049488762,4.72102677,2521.8,2521.7,2.88069554]
[1748049488964,3.96557877,2521.7,2521.6,1.20795535]
[1748049489201,3.96557877,2521.7,2521.6,36.80695535]
[1748049491902,0.7897,2522.4,2521.7,8.0]
[1748049492106,0.7897,2522.4,2521.9,1.20795535]
[1748049492107,3.96510705,2522.0,2521.9,1.20795535]
[1748049493313,3.96510705,2522.0,2521.9,36.80895535]
[1748049493635,3.96510705,2522.0,2521.9,8.0]
[1748049493794,4.75480705,2522.0,2521.9,35.576]
[1748049494826,4.75480705,2522.0,2521.9,35.578]
[1748049495192,4.75480705,2522.0,2521.9,52.681]
[1748049496115,5.34807024,2522.0,2521.9,32.804]
[1748049496426,5.34807024,2522.0,2521.9,15.701]
[1748049496427,5.76632559,2522.0,2521.9,15.701]
[1748049496657,3.9669946,2520.8,2520.7,0.47168436]
[1748049496789,3.9669946,2520.8,2520.3,0.47168436]
[1748049496790,3.96762418,2520.4,2520.3,0.47168436]
[1748049497129,3.96762418,2520.4,2520.3,0.70753958]
[1748049497591,3.96762418,2520.4,2520.3,0.47168436]
[1748049497789,4.75732418,2520.4,2520.3,12.34968436]
[1748049499117,4.75732418,2520.4,2520.3,11.878]
[1748049499717,3.96793905,2520.2,2520.1,0.05]
[1748049499923,4.75763905,2520.2,2520.1,11.928]
[1748049500231,4.75763905,2520.2,2520.1,0.05]
[1748049500440,6.02694225,2520.2,2520.1,11.928]
[1748049502532,4.75763905,2520.2,2520.1,11.928]
[1748049505321,4.75763905,2520.2,2520.1,44.752]
[1748049506231,3.96762418,2520.4,2520.1,44.752]
[1748049506232,3.96683724,2520.9,2520.1,44.752]
[1748049506424,3.96793905,2520.2,2520.1,44.752]
[1748049507322,0.7871,2521.0,2520.1,44.752]
[1748049507323,3.96783521,2520.3,2520.1,44.752]
[1748049507750,3.96793905,2520.2,2520.1,44.752]
[1748049508439,3.96683724,2520.9,2520.1,44.752]
[1748049508634,3.96793905,2520.2,2520.1,44.752]
[1748049508849,3.96793905,2520.2,2520.1,44.76]
[1748049509486,0.20655596,2522.0,2520.3,0.7736]
[1748049509763,2.81518432,2522.7,2522.0,8.0]
[1748049509764,3.96428421,2522.6,2522.0,8.0]
[1748049510052,3.96433531,2522.5,2522.1,13.94520886]
[1748049510210,3.96433531,2522.5,2522.2,2.51876181]
[1748049510406,3.96419956,2522.6,2522.3,8.0]
[1748049511113,3.9640349,2522.7,2522.3,8.0]
[1748049511314,3.9640349,2522.7,2522.3,10.24047618]
[1748049511510,3.96418315,2522.6,2522.3,10.24047618]
[1748049511915,3.96418315,2522.6,2522.3,10.43934728]
[1748049514224,0.05,2522.9,2522.3,11.23144728]
[1748049514427,3.96384969,2522.8,2522.4,1.37502091]
[1748049514643,3.96413671,2522.7,2522.4,1.37502091]
[1748049515349,3.96413671,2522.7,2522.5,32.816]
[1748049515566,3.96416395,2522.6,2522.5,32.816]
[1748049517771,3.96401078,2522.7,2522.5,32.816]
[1748049517974,3.96401078,2522.7,2522.6,0.70920016]
[1748049520294,3.96390578,2522.8,2522.6,0.70920016]
[1748049520679,3.96390578,2522.8,2522.7,27.583]
[1748049521133,3.96390578,2522.8,2522.7,11.879]
[1748049521790,4.01066571,2524.9,2523.9,0.55]
[1748049522097,0.05,2524.9,2524.3,10.51876181]
[1748049522273,0.05,2524.9,2524.8,8.0]
[1748049522447,0.05,2524.9,2524.8,20.80965616]
[1748049525277,0.05,2524.9,2524.8,54.17265616]
[1748049526866,0.05,2524.9,2524.8,54.36741345]
[1748049527251,0.05,2524.9,2524.8,37.26841345]
[1748049529256,0.05,2524.9,2524.8,21.00441345]
[1748049530499,0.05,2524.9,2524.8,8.93165616]
[1748049530705,0.05,2524.9,2524.1,2.2198907]
[1748049530706,3.96086663,2524.7,2524.6,2.51876181]
[1748049530885,0.05,2524.9,2524.6,14.38776181]
[1748049531086,0.05,2524.9,2524.7,8.03960161]
[1748049531289,0.05,2524.9,2524.8,2.24273634]
[1748049534000,0.7873,2525.8,2524.9,8.0]
[1748049534193,3.95961195,2525.5,2525.4,2.51876181]
[1748049534393,3.95961195,2525.5,2525.4,14.38576181]
[1748049534615,3.95944622,2525.7,2524.8,2.24273634]
[1748049534616,3.96008236,2525.2,2524.8,2.24273634]
[1748049534798,3.96013321,2525.2,2525.0,8.0]
[1748049535206,3.96013321,2525.2,2525.1,41.344]
[1748049536520,3.96013321,2525.2,2525.1,53.209]
[1748049536821,3.96013321,2525.2,2525.1,53.208]
[1748049537223,3.95994923,2525.3,2525.1,53.208]
[1748049537392,3.95994923,2525.3,2525.2,2.51876181]
[1748049539196,3.95980545,2525.4,2525.2,2.51876181]
[1748049539402,3.95992555,2525.3,2525.2,2.51876181]
[1748049540014,3.96008236,2525.2,2525.1,28.10487723]
[1748049540320,3.96008236,2525.2,2525.1,53.206]
[1748049540927,3.96008236,2525.2,2525.1,25.089]
[1748049541128,4.72898236,2525.2,2525.1,17.089]
[1748049541422,4.72898236,2525.2,2525.1,45.206]
[1748049545219,3.96008236,2525.2,2525.1,45.206]
[1748049546537,3.96008236,2525.2,2525.1,45.205]
[1748049546835,3.96008236,2525.2,2525.1,17.089]
[1748049547134,3.96008236,2525.2,2525.1,45.205]
[1748049547531,3.96008236,2525.2,2525.1,17.089]
[1748049547938,3.96008236,2525.2,2525.1,45.205]
[1748049551440,4.32887718,2525.2,2525.1,33.34]
[1748049551642,4.32887718,2525.2,2525.1,45.204]
[1748049552142,4.32887718,2525.2,2525.1,17.089]
[1748049552442,4.32887718,2525.2,2525.1,44.943]
[1748049556103,0.36879482,2525.2,2525.1,44.943]
[1748049556304,0.36879482,2525.2,2525.1,45.32229505]
[1748049556601,4.32887718,2525.2,2525.1,45.32229505]
[1748049559128,4.32887718,2525.2,2525.1,17.46829505]
[1748049559300,5.11267718,2525.2,2525.1,0.37929505]
[1748049559501,5.11267718,2525.2,2525.1,33.45329505]
[1748049559700,6.41591781,2525.2,2525.1,44.938]
[1748049560520,6.41591781,2525.2,2525.1,17.084]
[1748049560724,6.41591781,2525.2,2525.1,44.938]
[1748049560943,6.41591781,2525.2,2525.1,17.084]
[1748049561148,6.41591781,2525.2,2525.1,44.938]
[1748049561353,6.41591781,2525.2,2525.1,17.084]
[1748049561659,6.41591781,2525.2,2525.1,44.938]
[1748049562719,6.96591781,2525.2,2525.1,33.074]
[1748049562929,6.96591781,2525.2,2525.1,44.938]
[1748049566260,6.41591781,2525.2,2525.1,44.938]
[1748049571672,14.41591781,2525.2,2525.1,44.943]
[1748049572152,6.41591781,2525.2,2525.1,44.943]
[1748049572325,6.96591781,2525.2,2525.1,44.943]
[1748049572971,6.96591781,2525.2,2525.1,44.944]
[1748049574073,6.96591781,2525.2,2525.1,17.084]
[1748049574226,6.96591781,2525.2,2525.1,44.944]
[1748049575073,6.96591781,2525.2,2525.1,17.084]
[1748049575272,0.55,2525.0,2523.8,0.8031]
[1748049575571,3.96212211,2523.9,2523.8,0.8031]
[1748049575776,3.9622791,2523.8,2523.7,1.20631211]
[1748049575970,3.9622791,2523.8,2523.7,34.28931211]
[1748049576269,3.9622791,2523.8,2523.7,37.79855332]
[1748049576474,0.36879482,2524.9,2523.7,37.79855332]
[1748049576475,1.25186989,2525.8,2524.2,0.55]
[1748049576676,1.25186989,2525.8,2525.7,2.00941211]
[1748049576889,1.25186989,2525.8,2525.7,23.20661551]
[1748049577185,1.25186989,2525.8,2525.7,24.25236247]
[1748049577535,1.25186989,2525.8,2525.7,12.38536247]
[1748049577882,3.95914165,2525.8,2525.7,15.17617457]
[1748049578231,3.95914165,2525.8,2525.7,23.17617457]
[1748049578750,0.05,2525.9,2525.7,23.39722693]
[1748049579771,0.05,2525.9,2525.8,0.22105236]
[1748049580882,4.00898491,2525.9,2525.8,0.22105236]
[1748049581583,0.05,2525.9,2525.8,0.22105236]
[1748049581741,0.05,2525.9,2525.8,2.56077505]
[1748049582381,0.05,2525.9,2525.8,12.08505236]
[1748049582742,4.00898491,2525.9,2525.8,12.08505236]
[1748049583371,3.95914165,2525.8,2525.7,3.30917457]
[1748049583544,3.95914165,2525.8,2525.7,15.17317457]
[1748049585383,3.95914165,2525.8,2525.7,48.58817457]
[1748049586657,3.95914165,2525.8,2525.7,52.09741578]
[1748049588378,3.95914165,2525.8,2525.7,23.90141578]
[1748049588554,3.95914165,2525.8,2525.7,25.083]
[1748049588876,3.95914165,2525.8,2525.7,53.276]
[1748049591949,3.95914165,2525.8,2525.7,17.083]
[1748049592173,3.95914165,2525.8,2525.7,45.276]
[1748049595097,4.00747901,2526.9,2525.7,45.276]
[1748049595098,0.1,2527.4,2525.8,0.7898]
[1748049595393,0.1,2527.4,2527.3,2.50607457]
[1748049595688,4.05677699,2527.4,2527.3,25.082]
[1748049595893,4.05677699,2527.4,2527.3,53.853]
[1748049596591,4.05677699,2527.4,2527.3,25.082]
[1748049596892,4.05677699,2527.4,2527.3,53.848]
[1748049599892,4.05677699,2527.4,2527.3,53.844]
[1748049600193,0.1,2527.4,2527.3,39.26807457]
[1748049601459,4.05663527,2527.4,2527.3,39.26807457]
[1748049601659,0.1,2527.4,2527.3,39.26807457]
[1748049601986,4.05663527,2527.4,2527.3,39.26807457]
[1748049602170,0.1,2527.4,2527.3,39.26807457]
[1748049603993,0.05,2527.9,2527.4,8.7898]
[1748049604192,0.05,2527.9,2527.7,8.0]
[1748049604372,4.005907,2527.9,2527.7,8.0]
[1748049604574,3.95600917,2527.8,2527.7,8.0]
[1748049604781,3.95600917,2527.8,2527.7,9.05060746]
[1748049605199,3.95600917,2527.8,2527.7,43.02660746]
[1748049605863,3.95600917,2527.8,2527.7,54.87860746]
[1748049606299,3.95524433,2528.3,2527.8,0.7898]
[1748049606600,3.95467976,2528.7,2528.1,2.50607457]
[1748049606905,3.9553816,2528.3,2528.2,24.899]
[1748049607210,3.9556721,2528.1,2528.0,8.0]
[1748049607362,3.95543059,2528.2,2528.0,36.754]
[1748049607862,3.95553973,2528.1,2528.0,36.754]
[1748049608059,3.95553973,2528.1,2528.0,37.80260746]
[1748049608676,3.95553973,2528.1,2528.0,36.75]
[1748049610307,3.95542868,2528.2,2528.0,36.75]
[1748049610502,3.95553973,2528.1,2528.0,8.0]
[1748049610807,3.95529214,2528.3,2528.0,36.75]
[1748049611282,3.95509968,2528.4,2528.0,28.75]
[1748049612004,3.95501784,2528.5,2528.2,2.50607457]
[1748049612317,3.95501373,2528.5,2528.2,2.50607457]
[1748049612607,3.95460117,2528.7,2528.3,28.748]
[1748049612781,0.8226,2529.0,2528.3,28.748]
[1748049612966,3.95498074,2528.5,2528.3,31.25407457]
[1748049613378,0.8226,2529.0,2528.4,8.0]
[1748049613576,3.95419015,2529.0,2528.7,8.0]
[1748049613774,0.1,2529.4,2528.8,8.7733]
[1748049613978,4.00283635,2529.9,2529.0,0.7733]
[1748049614180,4.00283635,2529.9,2529.6,8.0]
[1748049614181,0.05,2529.9,2529.6,8.0]
[1748049614482,0.05,2529.9,2529.7,0.03952572]
[1748049614704,0.05,2529.9,2529.6,8.0]
[1748049614705,0.05,2529.9,2529.8,11.852]
[1748049614915,0.05,2529.9,2529.8,13.79107126]
[1748049615218,0.05,2529.9,2529.8,59.58044583]
[1748049615404,0.05,2530.9,2529.9,8.0]
[1748049615602,0.05,2530.9,2529.8,41.96344583]
[1748049615603,3.95202054,2530.4,2529.8,5.21844583]
[1748049615918,3.95198078,2530.4,2530.0,8.0]
[1748049616315,3.95186606,2530.5,2530.0,8.0]
[1748049616515,3.9519503,2530.4,2530.0,8.0]
[1748049617107,0.8237,2530.3,2529.4,1.47755411]
[1748049617305,3.95284242,2529.9,2529.6,8.0]
[1748049617491,3.95289513,2529.8,2529.6,8.0]
[1748049617698,3.95276399,2529.9,2529.6,8.0]
[1748049618008,3.95288046,2529.9,2529.8,8.0]
[1748049618600,3.95256916,2530.0,2529.9,8.0]
[1748049619930,3.95298322,2529.8,2529.5,8.0]
[1748049620127,4.77581854,2530.3,2529.6,28.737]
[1748049620294,3.95295063,2529.8,2529.6,28.737]
[1748049620495,3.95295063,2529.8,2529.5,8.0]
[1748049620496,3.9533367,2529.6,2529.5,8.0]
[1748049620692,4.77582755,2530.3,2529.5,36.733]
[1748049621031,0.47758275,2530.2,2529.5,36.733]
[1748049621408,3.95300587,2529.8,2529.5,36.733]
[1748049622735,3.95304032,2529.7,2529.5,36.733]
[1748049622930,3.95291812,2529.8,2529.5,36.733]
[1748049623110,3.95306466,2529.7,2529.5,36.733]
[1748049623930,3.95292577,2529.8,2529.5,36.733]
[1748049624129,3.95304923,2529.7,2529.5,36.733]
[1748049625034,3.95293708,2529.8,2529.5,36.733]
[1748049625229,3.95305399,2529.7,2529.6,25.057]
[1748049625634,3.95254625,2530.1,2529.7,8.0]
[1748049625835,3.95240806,2530.2,2529.9,8.0]
[1748049626014,3.95242299,2530.1,2530.0,24.926]
[1748049631314,3.95242299,2530.1,2530.0,8.0]
[1748049631654,3.95242299,2530.1,2530.0,36.766]
[1748049632951,3.9517658,2530.6,2530.1,8.0]
[1748049633156,3.95182299,2530.5,2530.4,10.50607457]
[1748049633323,3.95182299,2530.5,2530.4,27.42807457]
[1748049633747,3.95182299,2530.5,2530.4,8.0]
[1748049633910,3.95182299,2530.5,2530.4,36.765]
[1748049634111,3.95182299,2530.5,2530.4,8.0]
[1748049634336,3.95182299,2530.5,2530.4,36.765]
[1748049635011,4.72182299,2530.5,2530.4,36.765]
[1748049635223,5.98428114,2530.5,2530.4,17.052]
[1748049635673,5.98428114,2530.5,2530.4,45.816]
[1748049635821,5.98428114,2530.5,2530.4,17.052]
[1748049636022,5.98428114,2530.5,2530.4,45.815]
[1748049639461,4.72178818,2530.5,2530.4,45.815]
[1748049641045,4.72178818,2530.5,2530.4,17.052]
[1748049641244,4.72178818,2530.5,2530.4,45.815]
[1748049642158,12.72178818,2530.5,2530.4,45.815]
[1748049642552,11.95178818,2530.5,2530.4,45.815]
[1748049642750,3.95178818,2530.5,2530.4,45.815]
[1748049642928,3.95178818,2530.5,2530.4,46.03612529]
[1748049648141,3.95178818,2530.5,2530.4,17.27312529]
[1748049648479,3.95178818,2530.5,2530.4,46.03312529]
[1748049649183,3.95171358,2530.6,2530.4,46.86532529]
[1748049649489,3.95163202,2530.6,2530.5,2.50607457]
[1748049649655,3.95163202,2530.6,2530.5,1.42145883]
[1748049650641,3.95163202,2530.6,2530.5,30.17945883]
[1748049651674,3.95163202,2530.6,2530.5,28.97912529]
[1748049653246,11.95163202,2530.6,2530.5,0.22112529]
[1748049653452,14.73917469,2530.6,2530.5,0.22112529]
[1748049653647,14.73917469,2530.6,2530.5,28.97912529]
[1748049654151,12.75373202,2530.6,2530.5,28.758]
[1748049654779,3.95178818,2530.5,2530.4,17.052]
[1748049655087,0.15,2530.9,2530.4,48.52951699]
[1748049655088,0.9521,2530.9,2530.4,48.52951699]
[1748049655263,3.95178818,2530.5,2530.4,49.36171699]
[1748049657262,3.95169409,2530.6,2530.4,49.36171699]
[1748049657591,3.95178818,2530.5,2530.4,49.36171699]
[1748049660656,3.95178818,2530.5,2530.4,57.36171699]
[1748049660862,3.95178818,2530.5,2530.4,56.52951699]
[1748049661288,3.95178818,2530.5,2530.4,45.66344405]
[1748049661289,4.7421301,2530.5,2530.4,45.66344405]
[1748049661796,4.7421301,2530.5,2530.4,45.442]
[1748049662001,3.95178818,2530.5,2530.4,45.442]
[1748049663594,3.95178818,2530.5,2530.4,45.444]
[1748049667491,3.95178818,2530.5,2530.4,17.052]
[1748049667698,3.95178818,2530.5,2530.4,45.444]
[1748049669123,3.95178818,2530.5,2530.4,45.446]
[1748049670804,5.21750323,2530.5,2530.4,45.446]
[1748049674809,3.95178818,2530.5,2530.4,45.448]
[1748049684836,3.95178818,2530.5,2530.4,17.052]
[1748049685015,3.95178818,2530.5,2530.4,45.448]
[1748049685816,3.95178818,2530.5,2530.4,45.01]
[1748049686141,3.95178818,2530.5,2530.4,33.168]
[1748049686337,3.95178818,2530.5,2530.4,45.01]
[1748049686559,5.21750336,2530.5,2530.4,45.01]
[1748049689464,3.95178818,2530.5,2530.4,45.01]
[1748049689924,3.95178818,2530.5,2530.4,45.23172452]
[1748049692068,3.95178818,2530.5,2530.4,17.27372452]
[1748049692272,3.95178818,2530.5,2530.4,45.23272452]
[1748049692441,3.95178818,2530.5,2530.4,45.23172452]
[1748049693176,3.95178818,2530.5,2530.4,17.27372452]
[1748049693380,3.95178818,2530.5,2530.4,45.23172452]
[1748049693737,3.95178818,2530.5,2530.4,17.27372452]
[1748049694139,3.95178818,2530.5,2530.4,45.23172452]
[1748049694742,3.95178818,2530.5,2530.4,17.27372452]
[1748049695068,3.95178818,2530.5,2530.4,45.23172452]
[1748049695692,3.95178818,2530.5,2530.4,33.38872452]
[1748049695834,3.95178818,2530.5,2530.4,45.22972452]
[1748049696395,3.95178818,2530.5,2530.4,17.27372452]
[1748049696698,3.95178818,2530.5,2530.4,46.95709697]
[1748049698776,3.95178818,2530.5,2530.4,47.78989697]
[1748049700639,3.95178818,2530.5,2530.4,45.22972452]
[1748049704374,3.95178818,2530.5,2530.4,46.43074252]
[1748049705792,3.95178818,2530.5,2530.4,47.26354252]
[1748049710998,3.95178818,2530.5,2530.4,45.22772452]
[1748049711202,3.95178818,2530.5,2530.4,33.38772452]
[1748049711408,3.95178818,2530.5,2530.4,45.22772452]
[1748049711773,3.95178818,2530.5,2530.4,17.27372452]
[1748049712002,4.74213026,2530.5,2530.4,45.22772452]
[1748049712200,5.55823026,2530.5,2530.4,45.22772452]
[1748049712574,5.55823026,2530.5,2530.4,45.006]
[1748049712804,4.76788818,2530.5,2530.4,45.006]
[1748049714113,4.76788818,2530.5,2530.4,45.22735532]
[1748049714276,4.76788818,2530.5,2530.4,33.38735532]
[1748049714613,3.95178818,2530.5,2530.4,45.22735532]
[1748049719218,3.95178818,2530.5,2530.4,47.25237332]
[1748049719538,4.00116533,2530.9,2530.4,47.81959671]
[1748049719826,3.95178818,2530.5,2530.4,47.031018]
[1748049720202,3.95165382,2530.6,2530.4,47.031018]
[1748049720429,3.95165382,2530.6,2530.5,1.201018]
[1748049721528,3.95165382,2530.6,2530.5,1.42283759]
[1748049723013,3.9515268,2530.7,2530.5,1.42283759]
[1748049723223,3.9515268,2530.7,2530.6,1.201018]
[1748049723626,3.9515268,2530.7,2530.6,1.42283759]
[1748049726331,0.05,2530.9,2530.6,1.92283759]
[1748049726653,0.01527146,2530.9,2530.8,1.201018]
[1748049726936,0.01527146,2530.9,2530.8,1.51340356]
[1748049727138,0.01527146,2530.9,2530.8,1.73522315]
[1748049727797,3.96643507,2530.9,2530.8,1.73522315]
[1748049728035,3.96643507,2530.9,2530.8,29.43922315]
[1748049728436,0.01527146,2530.9,2530.8,29.43922315]
[1748049728635,3.96643507,2530.9,2530.8,29.43922315]
[1748049728797,3.96643507,2530.9,2530.8,37.43922315]
[1748049729199,3.96643507,2530.9,2530.8,36.23820515]
[1748049729433,3.96643507,2530.9,2530.8,37.43922315]
[1748049732753,3.96643507,2530.9,2530.8,37.43722315]
[1748049733109,3.96643507,2530.9,2530.8,8.53420515]
[1748049733316,3.96643507,2530.9,2530.8,35.92381959]
[1748049735169,0.01527146,2530.9,2530.8,35.92381959]
[1748049735372,0.01527146,2530.9,2530.8,52.97081959]
[1748049735650,0.01527146,2530.9,2530.8,53.79531959]
[1748049736641,3.96643507,2530.9,2530.8,53.79531959]
[1748049737659,0.01527146,2530.9,2530.8,53.79531959]
[1748049740087,3.96643507,2530.9,2530.8,53.79531959]
[1748049740383,0.01527146,2530.9,2530.8,53.79531959]
[1748049740793,3.96643507,2530.9,2530.8,53.79531959]
[1748049740963,0.01527146,2530.9,2530.8,53.79531959]
[1748049743886,0.01527146,2530.9,2530.8,55.56056098]
[1748049744049,0.01527146,2530.9,2530.8,54.35954298]
[1748049744254,0.01527146,2530.9,2530.8,53.79231959]
[1748049744455,3.96643507,2530.9,2530.8,41.13081959]
[1748049744679,3.96643507,2530.9,2530.8,52.96781959]
[1748049746995,3.96643507,2530.9,2530.8,17.26881959]
[1748049747292,3.96643507,2530.9,2530.8,46.13683759]
[1748049748290,3.96643507,2530.9,2530.8,46.93813759]
[1748049748496,0.01527146,2530.9,2530.8,54.93813759]
[1748049748692,0.05,2531.9,2530.9,9.36081062]
[1748049748693,0.8091,2531.8,2530.9,9.36081062]
[1748049748871,0.8091,2531.8,2531.7,1.201018]
[1748049749072,4.75889144,2531.8,2531.7,13.038018]
[1748049749265,3.94979144,2531.8,2531.7,13.038018]
[1748049749491,3.94979144,2531.8,2531.7,1.201018]
[1748049749672,3.94979144,2531.8,2531.7,13.038018]
[1748049749870,3.99967067,2531.9,2531.7,13.25983759]
[1748049750177,3.94975906,2531.8,2531.7,14.64002939]
[1748049750796,0.05,2531.9,2531.7,14.64002939]
[1748049751007,0.05,2531.9,2531.8,9.33112339]
[1748049751596,0.05,2531.9,2531.8,9.93034894]
[1748049751772,0.05,2531.9,2531.8,12.77485439]
[1748049752286,0.05,2531.9,2531.8,13.408649]
[1748049752595,0.05,2531.9,2531.8,12.207631]
[1748049753095,0.05,2531.9,2531.8,13.408649]
[1748049753304,0.05,2531.9,2531.8,23.66522504]
[1748049755199,0.05,2531.9,2531.8,57.73524304]
[1748049755598,0.05,2531.9,2531.8,56.53422504]
[1748049755805,3.99960306,2531.9,2531.8,28.87222504]
[1748049755992,3.99960306,2531.9,2531.8,54.12283759]
[1748049756797,0.05,2531.9,2531.8,54.12283759]
[1748049757702,0.05,2531.9,2531.8,54.92893759]
[1748049758100,0.05,2531.9,2531.8,56.12995559]
[1748049758264,0.05,2531.9,2531.8,54.92893759]
[1748049759066,0.05,2531.9,2531.8,37.88693759]
[1748049759498,0.05,2531.9,2531.8,26.05393759]
[1748049759700,0.05,2531.9,2531.8,37.88593759]
[1748049760620,0.05,2531.9,2531.8,2.22893759]
[1748049760780,0.05,2531.9,2531.8,22.06093759]
[1748049760973,0.05,2531.9,2531.8,23.12273569]
[1748049761178,0.05,2531.9,2531.8,24.32375369]
[1748049762010,0.05,2531.9,2531.8,24.51957232]
[1748049762620,3.99960306,2531.9,2531.8,24.32375369]
[1748049762819,3.99960306,2531.9,2531.8,22.06093759]
[1748049763329,3.99960306,2531.9,2531.8,9.42283759]
[1748049763529,3.99960306,2531.9,2531.8,21.25483759]
[1748049764497,3.99960306,2531.9,2531.8,0.22181959]
[1748049764722,4.79900306,2531.9,2531.8,12.05381959]
[1748049764912,6.06877953,2531.9,2531.8,11.832]
[1748049765238,4.79900306,2531.9,2531.8,44.693]
[1748049767251,4.79900306,2531.9,2531.8,32.861]
[1748049767453,4.79900306,2531.9,2531.8,44.693]
[1748049768235,4.79900306,2531.9,2531.8,44.694]
[1748049768766,4.79900306,2531.9,2531.8,32.862]
[1748049768918,6.10542251,2531.9,2531.8,32.862]
[1748049769320,6.47185234,2531.9,2531.8,32.862]
[1748049770358,6.10542251,2531.9,2531.8,32.862]
[1748049770851,6.10542251,2531.9,2531.8,17.038]